Workbook

Sheet підвищення
Q4: Додаток 1
Q5: до рішення виконавчого комітету
Q6: міської ради
A7: Тарифи на послуги з утримання будинків і споруд та прибудинкових територій для | Q7: _______ 2017 року № ___
A8: населення ( окремо за кожним будинком )
A9: Адреса будинку | B9: Поверховість | D9: Загальна площа будинку, кв.м. | E9: Плановий тариф з ПДВ, грн./кв.м. | F9: Прибирання прибудинкової території, грн/кв.м. | G9: Поточний ремонт конструктивних елементів і технічних пристроїв будинків та елементів зовнішнього упорядження, що розміщені на прибудинковій території ( в тому числі спортивних, дитячих та інших майданчиків) | O9: Технічне обслуговування ліфтів, грн./кв.м. | P9: Енергопостачання ліфтів, грн./кв.м. | Q9: Освітлення місць загального користування і підвалів, грн./кв.м. | R9: Обслуговування димовентиляційних каналів, грн./кв.м. | S9: Діючий тариф з ПДВ, грн./кв.м. | T9: 20 % росту діючого тарифу
C10: Кіль-ть квартир | G10: Поточний ремонт м»якої покрівлі, грн./кв.м. | H10: Поточний ремонт шиферної покрівлі, грн./кв.м. | I10: Поточний ремонт під»їздів, грн./кв.м. | J10: Поточний ремонт стиків стінових панелей, грн./кв.м. | K10: Поточний ремонт відмостки, грн./кв.м. | L10: Обслуговування покрівель та систем ливневого водовідведення, грн./кв.м. | M10: Поточний ремонт-фарбування будинкового газопроводу, грн./кв.м. | N10: Поточний ремонт елементів зовнішнього упорядження, що розміщені на прибудинковій території ( в т.ч. Спортивних, дитячих та інших майданчиків), грн./кв.м.
A11: в-д Ярмарковий, 6 | B11: 1 | C11: 1 | D11: 43.4 | E11: =S11+T11 -> 0.2422400564 | F11: 0 | G11: 0 | H11: 0 | I11: 0 | J11: 0 | K11: 0 | L11: 0 | M11: 0 | N11: 0 | O11: 0 | P11: 0 | Q11: 0 | R11: 0.2018667136 | S11: =F11+G11+H11+I11+J11+K11+L11+M11+N11+O11+P11+Q11+R11 -> 0.2018667136 | T11: =S11*20% -> 0.04037334273
A12: 1 Травня,127а | B12: 1 | C12: 2 | D12: 32.4 | E12: =S12+T12 -> 0.3244820508 | F12: 0 | G12: 0 | H12: 0 | I12: 0 | J12: 0 | K12: 0 | L12: 0 | M12: 0 | N12: 0 | O12: 0 | P12: 0 | Q12: 0 | R12: 0.270401709 | S12: 0.270401709 | T12: =S12*20% -> 0.0540803418
A13: в/м 12 буд.18 | B13: 1 | C13: 1 | D13: 53.2 | E13: 0.2332527204 | F13: 0 | G13: 0 | H13: 0 | I13: 0 | J13: 0 | K13: 0 | L13: 0 | M13: 0 | N13: 0 | O13: 0 | P13: 0 | Q13: 0 | R13: 0.194377267 | S13: 0.194377267 | T13: 0.0388754534
A14: Боброва,62 | B14: 1 | C14: 2 | D14: 87.9 | E14: 0.2392086108 | F14: 0 | G14: 0 | H14: 0 | I14: 0 | J14: 0 | K14: 0 | L14: 0 | M14: 0 | N14: 0 | O14: 0 | P14: 0 | Q14: 0 | R14: 0.199340509 | S14: 0.199340509 | T14: 0.03986810181
A15: Вокзальна,23 | B15: 1 | C15: 4 | D15: 117.41 | E15: 0.2287170717 | F15: 0 | G15: 0 | H15: 0 | I15: 0 | J15: 0 | K15: 0 | L15: 0 | M15: 0 | N15: 0 | O15: 0 | P15: 0 | Q15: 0 | R15: 0.1905975597 | S15: 0.1905975597 | T15: 0.03811951195
A16: Воровського,23 | B16: 1 | C16: 1 | D16: 24.6 | E16: 0 | F16: 0 | G16: 0 | H16: 0 | I16: 0 | J16: 0 | K16: 0 | L16: 0 | M16: 0 | N16: 0 | O16: 0 | P16: 0 | Q16: 0 | R16: 0 | S16: 0 | T16: 0
A17: Гімназична,9 | B17: 1 | C17: 2 | D17: 114 | E17: 0.1844424289 | F17: 0 | G17: 0 | H17: 0 | I17: 0 | J17: 0 | K17: 0 | L17: 0 | M17: 0 | N17: 0 | O17: 0 | P17: 0 | Q17: 0 | R17: 0.1537020241 | S17: 0.1537020241 | T17: 0.03074040481
A18: Гімназична,59/1 | B18: 1 | C18: 3 | D18: 144.3 | E18: 0.240944655 | F18: 0 | G18: 0 | H18: 0 | I18: 0 | J18: 0 | K18: 0 | L18: 0 | M18: 0 | N18: 0 | O18: 0 | P18: 0 | Q18: 0 | R18: 0.2007872125 | S18: 0.2007872125 | T18: 0.0401574425
A19: Гімназична,67/2 | B19: 1 | C19: 2 | D19: 99.1 | E19: 0.2121739343 | F19: 0 | G19: 0 | H19: 0 | I19: 0 | J19: 0 | K19: 0 | L19: 0 | M19: 0 | N19: 0 | O19: 0 | P19: 0 | Q19: 0 | R19: 0.1768116119 | S19: 0.1768116119 | T19: 0.03536232239
A20: Гімназична,74а | B20: 1 | C20: 6 | D20: 272.3 | E20: 0.2277560322 | F20: 0 | G20: 0 | H20: 0 | I20: 0 | J20: 0 | K20: 0 | L20: 0 | M20: 0 | N20: 0 | O20: 0 | P20: 0 | Q20: 0 | R20: 0.1897966935 | S20: 0.1897966935 | T20: 0.0379593387
A21: Гімназична,74б | B21: 1 | C21: 3 | D21: 102.8 | E21: 0.3068059858 | F21: 0 | G21: 0 | H21: 0 | I21: 0 | J21: 0 | K21: 0 | L21: 0 | M21: 0 | N21: 0 | O21: 0 | P21: 0 | Q21: 0 | R21: 0.2556716548 | S21: 0.2556716548 | T21: 0.05113433097
A22: Гімназична,112б | B22: 1 | C22: 3 | D22: 136.6 | E22: 0.2553818246 | F22: 0 | G22: 0 | H22: 0 | I22: 0 | J22: 0 | K22: 0 | L22: 0 | M22: 0 | N22: 0 | O22: 0 | P22: 0 | Q22: 0 | R22: 0.2128181872 | S22: 0.2128181872 | T22: 0.04256363744
A23: Гнідаша,17 | B23: 1 | C23: 4 | D23: 138 | E23: 0.3058390821 | F23: 0 | G23: 0 | H23: 0 | I23: 0 | J23: 0 | K23: 0 | L23: 0 | M23: 0 | N23: 0 | O23: 0 | P23: 0 | Q23: 0 | R23: 0.2548659017 | S23: 0.2548659017 | T23: 0.05097318035
A24: Гнідаша,47 | B24: 1 | C24: 2 | D24: 30.2 | E24: 0.2524478323 | F24: 0 | G24: 0 | H24: 0 | I24: 0 | J24: 0 | K24: 0 | L24: 0 | M24: 0 | N24: 0 | O24: 0 | P24: 0 | Q24: 0 | R24: 0.2103731936 | S24: 0.2103731936 | T24: 0.04207463871
A25: 3 в'їзд. Гоголя,6 | B25: 1 | C25: 3 | D25: 82.5 | E25: 0 | F25: 0 | G25: 0 | H25: 0 | I25: 0 | J25: 0 | K25: 0 | L25: 0 | M25: 0 | N25: 0 | O25: 0 | P25: 0 | Q25: 0 | R25: 0 | S25: 0 | T25: 0
A26: Гоголя,28 | B26: 1 | C26: 1 | D26: 31.1 | E26: 0.2892219655 | F26: 0 | G26: 0 | H26: 0 | I26: 0 | J26: 0 | K26: 0 | L26: 0 | M26: 0 | N26: 0 | O26: 0 | P26: 0 | Q26: 0 | R26: 0.2410183046 | S26: 0.2410183046 | T26: 0.04820366092
A27: Гоголя,35 | B27: 1 | C27: 3 | D27: 75.5 | E27: 0.2784958529 | F27: 0 | G27: 0 | H27: 0 | I27: 0 | J27: 0 | K27: 0 | L27: 0 | M27: 0 | N27: 0 | O27: 0 | P27: 0 | Q27: 0 | R27: 0.2320798774 | S27: 0.2320798774 | T27: 0.04641597548
A28: Гоголя,42 | B28: 1 | C28: 1 | D28: 39.9 | E28: 0.2634891841 | F28: 0 | G28: 0 | H28: 0 | I28: 0 | J28: 0 | K28: 0 | L28: 0 | M28: 0 | N28: 0 | O28: 0 | P28: 0 | Q28: 0 | R28: 0.2195743201 | S28: 0.2195743201 | T28: 0.04391486402
A29: Дачна,33/1 | B29: 1 | C29: 9 | D29: 406.1 | E29: 0.2351950435 | F29: 0 | G29: 0 | H29: 0 | I29: 0 | J29: 0 | K29: 0 | L29: 0 | M29: 0 | N29: 0 | O29: 0 | P29: 0 | Q29: 0 | R29: 0.1959958696 | S29: 0.1959958696 | T29: 0.03919917392
A30: Дачна,33/2 | B30: 1 | C30: 8 | D30: 464.7 | E30: 0.1953222192 | F30: 0 | G30: 0 | H30: 0 | I30: 0 | J30: 0 | K30: 0 | L30: 0 | M30: 0 | N30: 0 | O30: 0 | P30: 0 | Q30: 0 | R30: 0.162768516 | S30: 0.162768516 | T30: 0.03255370319
A31: 3пров.Дослідний 5 | B31: 1 | C31: 2 | D31: 69.1 | E31: 0.156 | F31: 0 | G31: 0 | H31: 0 | I31: 0 | J31: 0 | K31: 0 | L31: 0 | M31: 0 | N31: 0 | O31: 0 | P31: 0 | Q31: 0 | R31: 0.13 | S31: 0.13 | T31: 0.026
A32: 3пров.Змагання 1 | B32: 1 | C32: 3 | D32: 149.4 | E32: 0.216 | F32: 0 | G32: 0 | H32: 0 | I32: 0 | J32: 0 | K32: 0 | L32: 0 | M32: 0 | N32: 0 | O32: 0 | P32: 0 | Q32: 0 | R32: 0.18 | S32: 0.18 | T32: 0.036
A33: Іванівська,7 | B33: 1 | C33: 3 | D33: 126.6 | E33: 0.2537381765 | F33: 0 | G33: 0 | H33: 0 | I33: 0 | J33: 0 | K33: 0 | L33: 0 | M33: 0 | N33: 0 | O33: 0 | P33: 0 | Q33: 0 | R33: 0.2114484804 | S33: 0.2114484804 | T33: 0.04228969608
A34: Іванівська,55 | B34: 1 | C34: 3 | D34: 92.71 | E34: 0 | F34: 0 | G34: 0 | H34: 0 | I34: 0 | J34: 0 | K34: 0 | L34: 0 | M34: 0 | N34: 0 | O34: 0 | P34: 0 | Q34: 0 | R34: 0 | S34: 0 | T34: 0
A35: Київська,351 | B35: 1 | C35: 5 | D35: 225 | E35: 0.2746758575 | F35: 0 | G35: 0 | H35: 0 | I35: 0 | J35: 0 | K35: 0 | L35: 0 | M35: 0 | N35: 0 | O35: 0 | P35: 0 | Q35: 0 | R35: 0.2288965479 | S35: 0.2288965479 | T35: 0.04577930959
A36: Київська,252 | B36: 1 | C36: 4 | D36: 116.2 | E36: 0 | F36: 0 | G36: 0 | H36: 0 | I36: 0 | J36: 0 | K36: 0 | L36: 0 | M36: 0 | N36: 0 | O36: 0 | P36: 0 | Q36: 0 | R36: 0 | S36: 0 | T36: 0
A37: Київська,250а | B37: 1 | C37: 5 | D37: 205.8 | E37: 0.2863107496 | F37: 0 | G37: 0 | H37: 0 | I37: 0 | J37: 0 | K37: 0 | L37: 0 | M37: 0 | N37: 0 | O37: 0 | P37: 0 | Q37: 0 | R37: 0.2385922913 | S37: 0.2385922913 | T37: 0.04771845827
A38: Київська,271а | B38: 1 | C38: 10 | D38: 377.9 | E38: 0.2572565688 | F38: 0 | G38: 0 | H38: 0 | I38: 0 | J38: 0 | K38: 0 | L38: 0 | M38: 0 | N38: 0 | O38: 0 | P38: 0 | Q38: 0 | R38: 0.214380474 | S38: 0.214380474 | T38: 0.04287609481
A39: Київська,237а | B39: 1 | C39: 5 | D39: 106.8 | E39: 0.03550236474 | F39: 0 | G39: 0 | H39: 0 | I39: 0 | J39: 0 | K39: 0 | L39: 0 | M39: 0 | N39: 0 | O39: 0 | P39: 0 | Q39: 0 | R39: 0.02958530395 | S39: 0.02958530395 | T39: 0.00591706079
A40: Ковалівська,8б,12 | B40: 1 | C40: 18 | D40: 739.17 | E40: 0.2653103762 | F40: 0 | G40: 0 | H40: 0 | I40: 0 | J40: 0 | K40: 0 | L40: 0 | M40: 0 | N40: 0 | O40: 0 | P40: 0 | Q40: 0 | R40: 0.2210919802 | S40: 0.2210919802 | T40: 0.04421839603
A41: Комсомольська,5в | B41: 1 | C41: 2 | D41: 86.7 | E41: 0.2862524734 | F41: 0 | G41: 0 | H41: 0 | I41: 0 | J41: 0 | K41: 0 | L41: 0 | M41: 0 | N41: 0 | O41: 0 | P41: 0 | Q41: 0 | R41: 0.2385437279 | S41: 0.2385437279 | T41: 0.04770874557
A42: Костянтинівська,90/2 | B42: 1 | C42: 2 | D42: 27.4 | E42: 0.3145033638 | F42: 0 | G42: 0 | H42: 0 | I42: 0 | J42: 0 | K42: 0 | L42: 0 | M42: 0 | N42: 0 | O42: 0 | P42: 0 | Q42: 0 | R42: 0.2620861365 | S42: 0.2620861365 | T42: 0.05241722731
A43: Костянтинівська,101 | B43: 1 | C43: 2 | D43: 94.8 | E43: 0.2217978575 | F43: 0 | G43: 0 | H43: 0 | I43: 0 | J43: 0 | K43: 0 | L43: 0 | M43: 0 | N43: 0 | O43: 0 | P43: 0 | Q43: 0 | R43: 0.1848315479 | S43: 0.1848315479 | T43: 0.03696630959
A44: 2 в'їзд Миколаївський,1 | B44: 1 | C44: 3 | D44: 22.5 | E44: 0.3829952075 | F44: 0 | G44: 0 | H44: 0 | I44: 0 | J44: 0 | K44: 0 | L44: 0 | M44: 0 | N44: 0 | O44: 0 | P44: 0 | Q44: 0 | R44: 0.3191626729 | S44: 0.3191626729 | T44: 0.06383253459
A45: Мічуріна,11 | B45: 1 | C45: 1 | D45: 41.7 | E45: 0.2521155503 | F45: 0 | G45: 0 | H45: 0 | I45: 0 | J45: 0 | K45: 0 | L45: 0 | M45: 0 | N45: 0 | O45: 0 | P45: 0 | Q45: 0 | R45: 0.2100962919 | S45: 0.2100962919 | T45: 0.04201925838
A46: МПС 3 | B46: 1 | C46: 5 | D46: 205.3 | E46: 0.153627157 | F46: 0 | G46: 0 | H46: 0 | I46: 0 | J46: 0 | K46: 0 | L46: 0 | M46: 0 | N46: 0 | O46: 0 | P46: 0 | Q46: 0 | R46: 0.1280226309 | S46: 0.1280226309 | T46: 0.02560452617
A47: Набережна,15 | B47: 1 | C47: 4 | D47: 151.8 | E47: 0.2327490639 | F47: 0 | G47: 0 | H47: 0 | I47: 0 | J47: 0 | K47: 0 | L47: 0 | M47: 0 | N47: 0 | O47: 0 | P47: 0 | Q47: 0 | R47: 0.1939575532 | S47: 0.1939575532 | T47: 0.03879151064
A48: Незалежності,25 | B48: 1 | C48: 2 | D48: 123.3 | E48: 0 | F48: 0 | G48: 0 | H48: 0 | I48: 0 | J48: 0 | K48: 0 | L48: 0 | M48: 0 | N48: 0 | O48: 0 | P48: 0 | Q48: 0 | R48: 0 | S48: 0 | T48: 0
A49: Незалежності,66 | B49: 1 | C49: 2 | D49: 57.7 | E49: 0.2807746495 | F49: 0 | G49: 0 | H49: 0 | I49: 0 | J49: 0 | K49: 0 | L49: 0 | M49: 0 | N49: 0 | O49: 0 | P49: 0 | Q49: 0 | R49: 0.2339788746 | S49: 0.2339788746 | T49: 0.04679577492
A50: П.Комуни,9 | B50: 1 | C50: 1 | D50: 37.5 | E50: 0.3309078593 | F50: 0 | G50: 0 | H50: 0 | I50: 0 | J50: 0 | K50: 0 | L50: 0 | M50: 0 | N50: 0 | O50: 0 | P50: 0 | Q50: 0 | R50: 0.2757565494 | S50: 0.2757565494 | T50: 0.05515130988
A51: П.Комуни,11 | B51: 1 | C51: 9 | D51: 300.8 | E51: 0.2692560253 | F51: 0 | G51: 0 | H51: 0 | I51: 0 | J51: 0 | K51: 0 | L51: 0 | M51: 0 | N51: 0 | O51: 0 | P51: 0 | Q51: 0 | R51: 0.2243800211 | S51: 0.2243800211 | T51: 0.04487600422
A52: Ракитна,41 | B52: 1 | C52: 2 | D52: 77.6 | E52: 0.1354796192 | F52: 0 | G52: 0 | H52: 0 | I52: 0 | J52: 0 | K52: 0 | L52: 0 | M52: 0 | N52: 0 | O52: 0 | P52: 0 | Q52: 0 | R52: 0.1128996826 | S52: 0.1128996826 | T52: 0.02257993653
A53: Садова,29а | B53: 1 | C53: 5 | D53: 145.2 | E53: 0.2745245369 | F53: 0 | G53: 0 | H53: 0 | I53: 0 | J53: 0 | K53: 0 | L53: 0 | M53: 0 | N53: 0 | O53: 0 | P53: 0 | Q53: 0 | R53: 0.2287704474 | S53: 0.2287704474 | T53: 0.04575408948
A54: Садова,47 | B54: 1 | C54: 2 | D54: 73.3 | E54: 0.2868545279 | F54: 0 | G54: 0 | H54: 0 | I54: 0 | J54: 0 | K54: 0 | L54: 0 | M54: 0 | N54: 0 | O54: 0 | P54: 0 | Q54: 0 | R54: 0.2390454399 | S54: 0.2390454399 | T54: 0.04780908798
A55: пров.Східний,10 | B55: 1 | C55: 1 | D55: 49.6 | E55: 0 | F55: 0 | G55: 0 | H55: 0 | I55: 0 | J55: 0 | K55: 0 | L55: 0 | M55: 0 | N55: 0 | O55: 0 | P55: 0 | Q55: 0 | R55: 0 | S55: 0 | T55: 0
A56: Ярмаркова,120 | B56: 1 | C56: 1 | D56: 74.7 | E56: 0.1407392028 | F56: 0 | G56: 0 | H56: 0 | I56: 0 | J56: 0 | K56: 0 | L56: 0 | M56: 0 | N56: 0 | O56: 0 | P56: 0 | Q56: 0 | R56: 0.117282669 | S56: 0.117282669 | T56: 0.02345653379
A57: Київська,335/2 | B57: 1 | C57: 4 | D57: 138.1 | E57: 0.2927492103 | F57: 0 | G57: 0 | H57: 0 | I57: 0 | J57: 0 | K57: 0 | L57: 0 | M57: 0 | N57: 0 | O57: 0 | P57: 0 | Q57: 0 | R57: 0.2439576753 | S57: 0.2439576753 | T57: 0.04879153506
A58: в/м 12 буд.1 | B58: 2 | C58: 8 | D58: 429.6 | E58: 1.02 | F58: 0 | G58: 0 | H58: 0.33 | I58: 0.2864571207 | J58: 0 | K58: 0 | L58: 0 | M58: 0.007 | N58: 0 | O58: 0 | P58: 0 | Q58: 0.342 | R58: 0.175892444 | S58: 0.85 | T58: 0.17
A59: в/м 12 буд.2 | B59: 2 | C59: 8 | D59: 432.6 | E59: 1.393963656 | F59: 0 | G59: 0 | H59: 0.33 | I59: 0.2844043766 | J59: 0 | K59: 0 | L59: 0 | M59: 0.007 | N59: 0 | O59: 0 | P59: 0 | Q59: 0.349 | R59: 0.1912320038 | S59: =F59+G59+H59+I59+J59+K59+L59+M59+N59+O59+P59+Q59+R59 -> 1.16163638 | T59: 0.2323272761
A60: в/м 12 буд.2а | B60: 2 | C60: 14 | D60: 860.8 | E60: 1.209223824 | F60: 0 | G60: 0 | H60: 0.33 | I60: 0.1427300851 | J60: 0 | K60: 0 | L60: 0 | M60: 0.007 | N60: 0 | O60: 0 | P60: 0 | Q60: 0.384 | R60: 0.1439564353 | S60: 1.00768652 | T60: 0.2015373041
A61: в/м 12 буд.3 | B61: 2 | C61: 9 | D61: 431.3 | E61: 1.251015451 | F61: 0 | G61: 0 | H61: 0.33 | I61: 0.2855264176 | J61: 0 | K61: 0 | L61: 0 | M61: 0.007 | N61: 0 | O61: 0 | P61: 0 | Q61: 0.228 | R61: 0.1919864582 | S61: 1.042512876 | T61: 0.2085025751
A62: в/м 12 буд.4 | B62: 2 | C62: 9 | D62: 465.2 | E62: 1.363953574 | F62: 0 | G62: 0 | H62: 0.33 | I62: 0.2849972975 | J62: 0 | K62: 0 | L62: 0 | M62: 0.007 | N62: 0 | O62: 0 | P62: 0 | Q62: 0.323 | R62: 0.1916306806 | S62: 1.136627978 | T62: 0.2273255956
A63: в/м 12 буд.5 | B63: 2 | C63: 8 | D63: 432.7 | E63: 1.462221116 | F63: 0 | G63: 0 | H63: 0.33 | I63: 0.2849312954 | J63: 0 | K63: 0 | L63: 0 | M63: 0.007 | N63: 0 | O63: 0 | P63: 0 | Q63: 0.405 | R63: 0.1915863011 | S63: 1.218517596 | T63: 0.2437035193
A64: в/м 12 буд.12 | B64: 2 | C64: 12 | D64: 849 | E64: 1.046491563 | F64: 0 | G64: 0 | H64: 0.33 | I64: 0.144915587 | J64: 0 | K64: 0 | L64: 0 | M64: 0.007 | N64: 0 | O64: 0 | P64: 0 | Q64: 0.244 | R64: 0.1461607152 | S64: 0.8720763022 | T64: 0.1744152604
A65: в/м 12 буд.29 | B65: 2 | C65: 13 | D65: 864.8 | E65: 2.106355734 | F65: 0.8 | G65: 0 | H65: 0.33 | I65: 0.1420380205 | J65: 0 | K65: 0 | L65: 0 | M65: 0.007 | N65: 0 | O65: 0 | P65: 0 | Q65: 0.333 | R65: 0.1432584244 | S65: 1.755296445 | T65: 0.351059289
A66: в/м 12 буд.37 | B66: 2 | C66: 12 | D66: 847 | E66: 1.185688756 | F66: 0 | G66: 0 | H66: 0.33 | I66: 0.1454122838 | J66: 0 | K66: 0 | L66: 0 | M66: 0.007 | N66: 0 | O66: 0 | P66: 0 | Q66: 0.359 | R66: 0.1466616798 | S66: 0.9880739636 | T66: 0.1976147927
A67: в/м 12 буд.56 | B67: 2 | C67: 12 | D67: 847 | E67: 1.225169101 | F67: 0 | G67: 0 | H67: 0.33 | I67: 0.1458605019 | J67: 0 | K67: 0 | L67: 0 | M67: 0.007 | N67: 0 | O67: 0 | P67: 0 | Q67: 0.391 | R67: 0.1471137489 | S67: 1.020974251 | T67: 0.2041948502
A68: 18 Вересня,21 | B68: 2 | C68: 14 | D68: 702.4 | E68: 1.199297675 | F68: 0 | G68: 0 | H68: 0.33 | I68: 0.1754536077 | J68: 0 | K68: 0 | L68: 0 | M68: 0.007 | N68: 0 | O68: 0 | P68: 0 | Q68: 0.31 | R68: 0.1769611215 | S68: 0.9994147292 | T68: 0.1998829458
A69: 18 Вересня,23 | B69: 2 | C69: 18 | D69: 925.13 | E69: 1.101004339 | F69: 0 | G69: 0 | H69: 0.33 | I69: 0.1863953136 | J69: 0 | K69: 0 | L69: 0 | M69: 0.007 | N69: 0 | O69: 0 | P69: 0 | Q69: 0.227 | R69: 0.1671083018 | S69: 0.9175036154 | T69: 0.1835007231
A70: 18 Вересня,25 | B70: 2 | C70: 16 | D70: 934.8 | E70: 1.240297195 | F70: 0 | G70: 0 | H70: 0.33 | I70: 0.19803627 | J70: 0 | K70: 0 | L70: 0 | M70: 0.007 | N70: 0 | O70: 0 | P70: 0 | Q70: 0.321 | R70: 0.1775447255 | S70: 1.033580995 | T70: 0.2067161991
A71: 18 Вересня,26 | B71: 2 | C71: 8 | D71: 367.6 | E71: 1.127124926 | F71: 0 | G71: 0 | H71: 0.33 | I71: 0.1693274612 | J71: 0 | K71: 0 | L71: 0 | M71: 0.007 | N71: 0 | O71: 0 | P71: 0 | Q71: 0.225 | R71: 0.2079433104 | S71: 0.9392707717 | T71: 0.1878541543
A72: 18 Вересня,31 | B72: 2 | C72: 18 | D72: 1036.5 | E72: 1.1424 | F72: 0 | G72: 0 | H72: 0.33 | I72: 0.18 | J72: 0 | K72: 0 | L72: 0 | M72: 0.007 | N72: 0 | O72: 0 | P72: 0 | Q72: 0.225 | R72: 0.21 | S72: 0.952 | T72: 0.1904
A73: 1 пров.8 Березня,33а | B73: 2 | C73: 8 | D73: 449.3 | E73: 1.639808177 | F73: 0 | G73: 0 | H73: 0.33 | I73: 0.2733466637 | J73: 0 | K73: 0 | L73: 0 | M73: 0.007 | N73: 0 | O73: 0 | P73: 0 | Q73: 0.7 | R73: 0.0561601504 | S73: 1.366506814 | T73: 0.2733013628
A74: 2-в'їзд Богунського,2в | B74: 2 | C74: 16 | D74: 638.5 | E74: 1.281949941 | F74: 0 | G74: 0 | H74: 0.33 | I74: 0.1946729958 | J74: 0 | K74: 0 | L74: 0 | M74: 0.007 | N74: 0 | O74: 0 | P74: 0 | Q74: 0.343 | R74: 0.1936186215 | S74: 1.068291617 | T74: 0.2136583235
A75: І Скоропатського,94 | B75: 2 | C75: 17 | D75: 669.8 | E75: =S75+T75 -> 4.02 | F75: 0 | G75: 0 | H75: 0.33 | I75: 0.3 | J75: 0 | K75: 0 | L75: 0 | M75: 0.007 | N75: 0 | O75: 0 | P75: 0 | Q75: 1.665555556 | R75: 0.08 | S75: 3.35 | T75: 0.67
A76: Вавілова,12 | B76: 2 | C76: 16 | D76: 617.5 | E76: 0.966734462 | F76: 0 | G76: 0 | H76: 0.33 | I76: 0.2020915462 | J76: 0 | K76: 0 | L76: 0 | M76: 0.007 | N76: 0 | O76: 0 | P76: 0 | Q76: 0.225 | R76: 0.04152050541 | S76: 0.8056120516 | T76: =S76*20% -> 0.1611224103
A77: Вавілова,14 | B77: 2 | C77: 26 | D77: 758.79 | E77: 0.8266719084 | F77: 0 | G77: 0 | H77: 0.33 | I77: 0.07607799489 | J77: 0 | K77: 0 | L77: 0 | M77: 0 | N77: 0 | O77: 0 | P77: 0 | Q77: 0.275 | R77: 0.007815262088 | S77: 0.688893257 | T77: 0.1377786514
A78: Вокзальна,55 | B78: 2 | C78: 13 | D78: 555.6 | E78: 1.177034069 | F78: 0 | G78: 0 | H78: 0.33 | I78: 0.2214024354 | J78: 0 | K78: 0 | L78: 0 | M78: 0.007 | N78: 0 | O78: 0 | P78: 0 | Q78: 0.225 | R78: 0.1974592891 | S78: 0.9808617245 | T78: 0.1961723449
A79: Гвардійська,37 | B79: 2 | C79: 16 | D79: 636.3 | E79: 0.7125140466 | F79: 0 | G79: 0 | H79: 0.15 | I79: 0.1939059627 | J79: 0 | K79: 0 | L79: 0 | M79: 0.007 | N79: 0 | O79: 0 | P79: 0 | Q79: 0.05 | R79: 0.1928557428 | S79: 0.5937617055 | T79: 0.1187523411
A80: Гвардійська,41 | B80: 2 | C80: 16 | D80: 847.6 | E80: 1.275350108 | F80: 0 | G80: 0 | H80: 0.33 | I80: 0.1470459344 | J80: 0 | K80: 0 | L80: 0 | M80: 0.008 | N80: 0 | O80: 0 | P80: 0 | Q80: 0.38 | R80: 0.1977458225 | S80: 1.062791757 | T80: 0.2125583514
A81: Земська,15 | B81: 2 | C81: 18 | D81: 899.3 | E81: 1.345157418 | F81: 0 | G81: 0 | H81: 0.33 | I81: 0.2051011336 | J81: 0 | K81: 0 | L81: 0 | M81: 0.007 | N81: 0 | O81: 0 | P81: 0 | Q81: 0.372 | R81: 0.2068633817 | S81: 1.120964515 | T81: 0.2241929031
A82: Київська,193 | B82: 2 | C82: 9 | D82: 464.3 | E82: 1.163759869 | F82: 0 | G82: 0 | H82: 0.33 | I82: 0.1385198529 | J82: 0 | K82: 0 | L82: 0 | M82: 0.006 | N82: 0 | O82: 0 | P82: 0 | Q82: 0.309 | R82: 0.1862800379 | S82: 0.9697998908 | T82: 0.1939599782
A83: Київська,233 | B83: 2 | C83: 18 | D83: 897.9 | E83: 1.320782907 | F83: 0 | G83: 0 | H83: 0.33 | I83: 0.2054436157 | J83: 0 | K83: 0 | L83: 0 | M83: 0.007 | N83: 0 | O83: 0 | P83: 0 | Q83: 0.351 | R83: 0.2072088065 | S83: 1.100652422 | T83: 0.2201304844
A84: Київська,235 | B84: 2 | C84: 16 | D84: 629.7 | E84: 1.211343072 | F84: 0 | G84: 0 | H84: 0.33 | I84: 0.1953530221 | J84: 0 | K84: 0 | L84: 0 | M84: 0.007 | N84: 0 | O84: 0 | P84: 0 | Q84: 0.26 | R84: 0.2170995381 | S84: 1.00945256 | T84: 0.201890512
A85: Київська,250/1 | B85: 2 | C85: 19 | D85: 768.37 | E85: 2.580758725 | F85: 0 | G85: 0 | H85: 0.33 | I85: 0.1123920537 | J85: 0 | K85: 0 | L85: 0 | M85: 0.007 | N85: 0 | O85: 0 | P85: 0 | Q85: 1.675 | R85: 0.02624021683 | S85: 2.150632271 | T85: 0.4301264541
A86: Київська,335/1 | B86: 2 | C86: 14 | D86: 553 | E86: 0.9265773731 | F86: 0 | G86: 0 | H86: 0.33 | I86: 0 | J86: 0 | K86: 0 | L86: 0 | M86: 0.007 | N86: 0 | O86: 0 | P86: 0 | Q86: 0.225 | R86: 0.2101478109 | S86: 0.7721478109 | T86: 0.1544295622
A87: Київська,335/3 | B87: 2 | C87: 7 | D87: 228.01 | E87: 1.116 | F87: 0 | G87: 0 | H87: 0.33 | I87: 0.332 | J87: 0 | K87: 0 | L87: 0 | M87: 0.007 | N87: 0 | O87: 0 | P87: 0 | Q87: 0.251 | R87: 0.01 | S87: 0.93 | T87: 0.186
A88: Колективна,34 | B88: 2 | C88: 17 | D88: 961.1 | E88: 1.174253008 | F88: 0 | G88: 0 | H88: 0.33 | I88: 0.1911741855 | J88: 0 | K88: 0 | L88: 0 | M88: 0.007 | N88: 0 | O88: 0 | P88: 0 | Q88: 0.398 | R88: 0.05236998746 | S88: 0.978544173 | T88: 0.1957088346
A89: Костянтинівська,265 | B89: 2 | C89: 8 | D89: 356.6 | E89: 1.330059644 | F89: 0 | G89: 0 | H89: 0.33 | I89: 0.3512227614 | J89: 0 | K89: 0 | L89: 0 | M89: 0.007 | N89: 0 | O89: 0 | P89: 0 | Q89: 0.225 | R89: 0.1951602756 | S89: 1.108383037 | T89: 0.2216766074
A90: Котляревського,70 | B90: 2 | C90: 9 | D90: 379.2 | E90: 1.306787479 | F90: 0 | G90: 0 | H90: 0.33 | I90: 0.3240277412 | J90: 0 | K90: 0 | L90: 0 | M90: 0.007 | N90: 0 | O90: 0 | P90: 0 | Q90: 0.229 | R90: 0.1989618243 | S90: 1.088989565 | T90: 0.2177979131
A91: Миколаївська,114 | B91: 2 | C91: 17 | D91: 787.16 | E91: 1.38423995 | F91: 0 | G91: 0 | H91: 0.33 | I91: 0.2361756312 | J91: 0 | K91: 0 | L91: 0 | M91: 0.007 | N91: 0 | O91: 0 | P91: 0 | Q91: 0.387 | R91: 0.1933576603 | S91: 1.153533292 | T91: 0.2307066583
A92: Миколаївська,116 | B92: 2 | C92: 12 | D92: 514.5 | E92: 1.545696408 | F92: 0 | G92: 0 | H92: 0.33 | I92: 0.3587674961 | J92: 0 | K92: 0 | L92: 0 | M92: 0.007 | N92: 0 | O92: 0 | P92: 0 | Q92: 0.379 | R92: 0.213312844 | S92: 1.28808034 | T92: 0.257616068
A93: О.Кошового,4 | B93: 2 | C93: 9 | D93: 370.9 | E93: 1.507760776 | F93: 0 | G93: 0 | H93: 0.33 | I93: 0.1653762747 | J93: 0 | K93: 0 | L93: 0 | M93: 0.007 | N93: 0 | O93: 0 | P93: 0 | Q93: 0.551 | R93: 0.203091039 | S93: 1.256467314 | T93: 0.2512934627
A94: О.Кошового,6 | B94: 2 | C94: 26 | D94: 868.41 | E94: 0.9209443886 | F94: 0 | G94: 0 | H94: 0.33 | I94: 0.1874536571 | J94: 0 | K94: 0 | L94: 0 | M94: 0 | N94: 0 | O94: 0 | P94: 0 | Q94: 0.21 | R94: =0.01*4 -> 0.04 | S94: 0.7674536571 | T94: 0.1534907314
A95: П.Комуни,2 | B95: 2 | C95: 8 | D95: 396.2 | E95: 1.24862066 | F95: 0 | G95: 0 | H95: 0.33 | I95: 0.155031922 | J95: 0 | K95: 0 | L95: 0 | M95: 0.007 | N95: 0 | O95: 0 | P95: 0 | Q95: 0.34 | R95: 0.2084852944 | S95: 1.040517216 | T95: 0.2081034433
A96: П.Комуни,6 | B96: 2 | C96: 8 | D96: 364.7 | E96: 1.447234474 | F96: 0 | G96: 0 | H96: 0.33 | I96: 0.1687700046 | J96: 0 | K96: 0 | L96: 0 | M96: 0.007 | N96: 0 | O96: 0 | P96: 0 | Q96: 0.493 | R96: 0.2072587234 | S96: 1.206028728 | T96: 0.2412057456
A97: Ю.Коптєва,2 | B97: 2 | C97: 8 | D97: 408.4 | E97: 1.044516821 | F97: 0 | G97: 0 | H97: 0.33 | I97: 0 | J97: 0 | K97: 0 | L97: 0 | M97: 0.007 | N97: 0 | O97: 0 | P97: 0 | Q97: 0.325 | R97: 0.2084306838 | S97: 0.8704306838 | T97: 0.1740861368
A98: Ю.Коптєва,27 | B98: 2 | C98: 8 | D98: 295.7 | E98: 1.370674726 | F98: 0 | G98: 0 | H98: 0.33 | I98: 0.2141945218 | J98: 0 | K98: 0 | L98: 0 | M98: 0.007 | N98: 0 | O98: 0 | P98: 0 | Q98: 0.378 | R98: 0.2130344164 | S98: 1.142228938 | T98: 0.2284457877
A99: Пирятинська,6 | B99: 2 | C99: 8 | D99: 375.3 | E99: 1.614249309 | F99: 0 | G99: 0 | H99: 0.33 | I99: 0.1639133138 | J99: 0 | K99: 0 | L99: 0 | M99: 0.007 | N99: 0 | O99: 0 | P99: 0 | Q99: 0.643 | R99: 0.2012944436 | S99: 1.345207757 | T99: 0.2690415515
A100: Пушкіна,62 | B100: 2 | C100: 8 | D100: 383.4 | E100: 1.421680068 | F100: 0 | G100: 0 | H100: 0.33 | I100: 0.1604503565 | J100: 0 | K100: 0 | L100: 0 | M100: 0.007 | N100: 0 | O100: 0 | P100: 0 | Q100: 0.482 | R100: 0.2052830338 | S100: 1.18473339 | T100: 0.236946678
A101: Садова,100 | B101: 2 | C101: 8 | D101: 391.2 | E101: 1.214385192 | F101: 0 | G101: 0 | H101: 0.33 | I101: 0.3146632566 | J101: 0 | K101: 0 | L101: 0 | M101: 0.007 | N101: 0 | O101: 0 | P101: 0 | Q101: 0.328 | R101: 0.0323244037 | S101: 1.01198766 | T101: 0.2023975321
A102: Садова,108а | B102: 2 | C102: 11 | D102: 446.3 | E102: 1.15051169 | F102: 0 | G102: 0 | H102: 0.33 | I102: 0.2760451724 | J102: 0 | K102: 0 | L102: 0 | M102: 0.007 | N102: 0 | O102: 0 | P102: 0 | Q102: 0.289 | R102: 0.05671456966 | S102: 0.958759742 | T102: 0.1917519484
A103: Садова,108б | B103: 2 | C103: 8 | D103: 370.7 | E103: 1.154500406 | F103: 0 | G103: 0 | H103: 0.33 | I103: 0.3318946138 | J103: 0 | K103: 0 | L103: 0 | M103: 0.007 | N103: 0 | O103: 0 | P103: 0 | Q103: 0.225 | R103: 0.06818905772 | S103: 0.9620836715 | T103: 0.1924167343
A104: Саксаганського,1 | B104: 2 | C104: 14 | D104: 695.7 | E104: 1.254542135 | F104: 0 | G104: 0 | H104: 0.33 | I104: 0.1764677759 | J104: 0 | K104: 0 | L104: 0 | M104: 0.007 | N104: 0 | O104: 0 | P104: 0 | Q104: 0.354 | R104: 0.1779840035 | S104: 1.045451779 | T104: 0.2090903559
A105: Саксаганського,2 | B105: 2 | C105: 8 | D105: 405.6 | E105: 1.914542019 | F105: 0 | G105: 0 | H105: 0.33 | I105: 0.1507391979 | J105: 0 | K105: 0 | L105: 0 | M105: 0.007 | N105: 0 | O105: 0 | P105: 0 | Q105: 0.905 | R105: 0.2027124843 | S105: 1.595451682 | T105: 0.3190903364
A106: Саксаганського,3 | B106: 2 | C106: 13 | D106: 730.5 | E106: 1.209841709 | F106: 0 | G106: 0 | H106: 0.33 | I106: 0.168377355 | J106: 0 | K106: 0 | L106: 0 | M106: 0.007 | N106: 0 | O106: 0 | P106: 0 | Q106: 0.333 | R106: 0.169824069 | S106: 1.008201424 | T106: 0.2016402848
A107: Саксаганського,4 | B107: 2 | C107: 14 | D107: 722.9 | E107: 1.157763951 | F107: 0 | G107: 0 | H107: 0.33 | I107: 0.1701705855 | J107: 0 | K107: 0 | L107: 0 | M107: 0.007 | N107: 0 | O107: 0 | P107: 0 | Q107: 0.286 | R107: 0.1716327071 | S107: 0.9648032926 | T107: 0.1929606585
A108: Саксаганського,5 | B108: 2 | C108: 13 | D108: 580.2 | E108: 1.33209058 | F108: 0 | G108: 0 | H108: 0.33 | I108: 0.2121264368 | J108: 0 | K108: 0 | L108: 0 | M108: 0.007 | N108: 0 | O108: 0 | P108: 0 | Q108: 0.347 | R108: 0.213949047 | S108: 1.110075484 | T108: 0.2220150967
A109: Саксаганського,6 | B109: 2 | C109: 12 | D109: 657.5 | E109: 1.133073332 | F109: 0 | G109: 0 | H109: 0.33 | I109: 0.1888027827 | J109: 0 | K109: 0 | L109: 0 | M109: 0.007 | N109: 0 | O109: 0 | P109: 0 | Q109: 0.228 | R109: 0.1904249938 | S109: 0.9442277765 | T109: 0.1888455553
A110: Саксаганського,10 | B110: 2 | C110: 8 | D110: 360.3 | E110: 1.300292443 | F110: 0 | G110: 0 | H110: 0.33 | I110: 0.1712602079 | J110: 0 | K110: 0 | L110: 0 | M110: 0.007 | N110: 0 | O110: 0 | P110: 0 | Q110: 0.365 | R110: 0.2103168282 | S110: 1.083577036 | T110: 0.2167154072
A111: Соборна,50 | B111: 2 | C111: 8 | D111: 400.1 | E111: 1.185450772 | F111: 0 | G111: 0 | H111: 0.33 | I111: 0.1543318281 | J111: 0 | K111: 0 | L111: 0 | M111: 0.007 | N111: 0 | O111: 0 | P111: 0 | Q111: 0.289 | R111: 0.2075438154 | S111: 0.9878756435 | T111: 0.1975751287
A112: Соборна,123 | B112: 2 | C112: 15 | D112: 514.3 | E112: 1.181271605 | F112: 0 | G112: 0 | H112: 0.33 | I112: 0.2391318432 | J112: 0 | K112: 0 | L112: 0 | M112: 0.007 | N112: 0 | O112: 0 | P112: 0 | Q112: 0.31 | R112: 0.09826116111 | S112: 0.9843930043 | T112: 0.1968786009
A113: Соборна,125 | B113: 2 | C113: 12 | D113: 320.58 | E113: 1.926098317 | F113: 0 | G113: 0 | H113: 0.33 | I113: 0.1874536571 | J113: 0 | K113: 0 | L113: 0 | M113: 0 | N113: 0 | O113: 0 | P113: 0 | Q113: 1.078 | R113: 0.00962827334 | S113: 1.60508193 | T113: 0.3210163861
A114: Тургенєва,28 | B114: 2 | C114: 16 | D114: 639 | E114: 1.050311073 | F114: 0 | G114: 0.15 | H114: 0 | I114: 0.1926610293 | J114: 0 | K114: 0 | L114: 0 | M114: 0.007 | N114: 0 | O114: 0 | P114: 0 | Q114: 0.289 | R114: 0.2365981982 | S114: 0.8752592275 | T114: 0.1750518455
A115: Тургенєва,32 | B115: 2 | C115: 16 | D115: 641.2 | E115: 1.072702859 | F115: 0 | G115: 0.15 | H115: 0 | I115: 0.1920595275 | J115: 0 | K115: 0 | L115: 0 | M115: 0.007 | N115: 0 | O115: 0 | P115: 0 | Q115: 0.309 | R115: 0.2358595213 | S115: 0.8939190489 | T115: 0.1787838098
A116: Фабрична,62 | B116: 2 | C116: 16 | D116: 628.42 | E116: 1.365855541 | F116: 0 | G116: 0 | H116: 0.33 | I116: 0.1957820142 | J116: 0 | K116: 0 | L116: 0 | M116: 0.007 | N116: 0 | O116: 0 | P116: 0 | Q116: 0.365 | R116: 0.2404309369 | S116: 1.138212951 | T116: 0.2276425902
A117: Фабрична,99а | B117: 2 | C117: 8 | D117: 364.8 | E117: 1.424236183 | F117: 0 | G117: 0 | H117: 0.33 | I117: 0.1684004015 | J117: 0 | K117: 0 | L117: 0 | M117: 0.007 | N117: 0 | O117: 0 | P117: 0 | Q117: 0.455 | R117: 0.2264630847 | S117: 1.186863486 | T117: 0.2373726972
A118: Фабрична,130а | B118: 2 | C118: 8 | D118: 372.95 | E118: 0.7437851844 | F118: 0 | G118: 0.15 | H118: 0 | I118: 0.1657237787 | J118: 0 | K118: 0 | L118: 0 | M118: 0.007 | N118: 0 | O118: 0 | P118: 0 | Q118: 0.229 | R118: 0.06809720823 | S118: 0.619820987 | T118: 0.1239641974
A119: пров.Фізкультурника,20а | B119: 2 | C119: 8 | D119: 449.8 | E119: 1.38040203 | F119: 0 | G119: 0 | H119: 0.33 | I119: 0.2773519687 | J119: 0 | K119: 0 | L119: 0 | M119: 0.007 | N119: 0 | O119: 0 | P119: 0 | Q119: 0.479 | R119: 0.05698305612 | S119: 1.150335025 | T119: 0.230067005
A120: пров.Фрунзе,22 | B120: 2 | C120: 20 | D120: 497 | E120: 0.7967457269 | F120: 0 | G120: 0 | H120: 0.29 | I120: 0.1237759893 | J120: 0 | K120: 0 | L120: 0 | M120: 0.022 | N120: 0 | O120: 0 | P120: 0 | Q120: 0.225 | R120: 0.003178783161 | S120: 0.6639547724 | T120: 0.1327909545
A121: Червоноармійська,68а | B121: 2 | C121: 8 | D121: 274.6 | E121: 1.22168287 | F121: 0 | G121: 0 | H121: 0.33 | I121: 0.2236969697 | J121: 0 | K121: 0 | L121: 0 | M121: 0.007 | N121: 0 | O121: 0 | P121: 0 | Q121: 0.261 | R121: 0.1963720882 | S121: 1.018069058 | T121: 0.2036138116
A122: Щорса,148 | B122: 2 | C122: 15 | D122: 618.4 | E122: 1.219420422 | F122: 0 | G122: 0 | H122: 0.33 | I122: 0.1993734133 | J122: 0 | K122: 0 | L122: 0 | M122: 0.007 | N122: 0 | O122: 0 | P122: 0 | Q122: 0.275 | R122: 0.2048102714 | S122: 1.016183685 | T122: 0.2032367369
A123: Ярмаркова,37 | B123: 2 | C123: 16 | D123: 623.7 | E123: 1.523703884 | F123: 0 | G123: 0 | H123: 0.33 | I123: 0.1969163466 | J123: 0 | K123: 0 | L123: 0 | M123: 0.006 | N123: 0 | O123: 0 | P123: 0 | Q123: 0.508 | R123: 0.2288368903 | S123: =F123+G123+H123+I123+J123+K123+L123+M123+N123+O123+P123+Q123+R123 -> 1.269753237 | T123: 0.2539506474
A124: Ярмаркова,68 | B124: 2 | C124: 8 | D124: 361.3 | E124: 1.085095628 | F124: 0 | G124: 0 | H124: 0.33 | I124: 0.1702647846 | J124: 0 | K124: 0 | L124: 0 | M124: 0.007 | N124: 0 | O124: 0 | P124: 0 | Q124: 0.362 | R124: 0.03498157168 | S124: 0.9042463563 | T124: 0.1808492713
A125: Ярмаркова,70 | B125: 2 | C125: 16 | D125: 634.6 | E125: 1.360619418 | F125: 0 | G125: 0 | H125: 0.33 | I125: 0.194120122 | J125: 0 | K125: 0 | L125: 0 | M125: 0.007 | N125: 0 | O125: 0 | P125: 0 | Q125: 0.387 | R125: 0.2157293927 | S125: 1.133849515 | T125: 0.2267699029
A126: в/м 12 буд.62 | B126: 3 | C126: 18 | D126: 1260.7 | E126: 1.673566509 | F126: 0.37 | G126: 0 | H126: 0.33 | I126: 0.1439003095 | J126: 0 | K126: 0.07 | L126: 0 | M126: 0.007 | N126: 0 | O126: 0 | P126: 0 | Q126: 0.326 | R126: 0.1477384482 | S126: 1.394638758 | T126: 0.2789277515
A127: в/м 12 буд.80 | B127: 3 | C127: 19 | D127: 1248.55 | E127: 1.680914496 | F127: 0.37 | G127: 0 | H127: 0.33 | I127: 0.1454414183 | J127: 0 | K127: 0.07 | L127: 0 | M127: 0.007 | N127: 0.007 | O127: 0 | P127: 0 | Q127: 0.322 | R127: 0.1493206617 | S127: 1.40076208 | T127: 0.280152416
A128: в/м 12 буд.81 | B128: 3 | C128: 18 | D128: 1271.9 | E128: 1.640401011 | F128: 0.36 | G128: 0 | H128: 0.33 | I128: 0.1435987101 | J128: 0 | K128: 0.07 | L128: 0 | M128: 0.007 | N128: 0 | O128: 0 | P128: 0 | Q128: 0.31 | R128: 0.1464021322 | S128: 1.367000842 | T128: 0.2734001685
A129: в/м 12 буд.82 | B129: 3 | C129: 18 | D129: 1252 | E129: 1.633881141 | F129: 0.37 | G129: 0 | H129: 0.33 | I129: 0.1443586273 | J129: 0 | K129: 0.07 | L129: 0 | M129: 0.007 | N129: 0 | O129: 0 | P129: 0 | Q129: 0.292 | R129: 0.1482089903 | S129: 1.361567618 | T129: 0.2723135235
A130: в/м 12 буд.90 | B130: 3 | C130: 20 | D130: 1252.4 | E130: 1.658862284 | F130: 0.37 | G130: 0 | H130: 0.33 | I130: 0.1447620569 | J130: 0 | K130: 0.07 | L130: 0 | M130: 0.007 | N130: 0 | O130: 0 | P130: 0 | Q130: 0.312 | R130: 0.1486231802 | S130: 1.382385237 | T130: 0.2764770474
A131: в/м 12 буд.94 | B131: 3 | C131: 24 | D131: 1563.3 | E131: 1.832459923 | F131: 0.37 | G131: 0 | H131: 0.33 | I131: 0.2321531468 | J131: 0 | K131: 0.07 | L131: 0 | M131: 0.007 | N131: 0.023 | O131: 0 | P131: 0 | Q131: 0.336 | R131: 0.1588967888 | S131: 1.527049936 | T131: 0.3054099871
A132: в/м 12 буд.96 | B132: 3 | C132: 23 | D132: 1512.5 | E132: 1.801674349 | F132: 0.4 | G132: 0 | H132: 0.33 | I132: 0.11 | J132: 0 | K132: 0.07 | L132: 0 | M132: 0.007 | N132: 0 | O132: 0 | P132: 0 | Q132: 0.427 | R132: 0.1573952908 | S132: 1.501395291 | T132: 0.3002790582
A133: 1 пров.8 Березня,29а | B133: 3 | C133: 18 | D133: 1125.8 | E133: 1.84064831 | F133: 0.42 | G133: 0 | H133: 0.33 | I133: 0.2413900231 | J133: 0 | K133: 0.07 | L133: 0 | M133: 0.007 | N133: 0.023 | O133: 0 | P133: 0 | Q133: 0.392 | R133: 0.05048356854 | S133: 1.533873592 | T133: 0.3067747183
A134: 1 пров.8 Березня,31 | B134: 3 | C134: 27 | D134: 1456.5 | E134: 1.944321052 | F134: 0.39 | G134: 0 | H134: 0.33 | I134: 0.250362494 | J134: 0 | K134: 0.07 | L134: 0 | M134: 0.007 | N134: 0.024 | O134: 0 | P134: 0 | Q134: 0.49 | R134: 0.05890504901 | S134: 1.620267543 | T134: 0.3240535086
A135: 1 пров.8 Березня,33 | B135: 3 | C135: 18 | D135: 784.3 | E135: 2.064293622 | F135: 0.47 | G135: 0 | H135: 0.33 | I135: 0.2209359006 | J135: 0 | K135: 0.07 | L135: 0 | M135: 0.007 | N135: 0.043 | O135: 0 | P135: 0 | Q135: 0.51 | R135: 0.0693087842 | S135: 1.720244685 | T135: 0.344048937
A136: Вавілова,20 | B136: 3 | C136: 22 | D136: 1028.6 | E136: 1.868471268 | F136: 0.46 | G136: 0 | H136: 0.33 | I136: 0.176533593 | J136: 0 | K136: 0.07 | L136: 0 | M136: 0.007 | N136: 0 | O136: 0 | P136: 0 | Q136: 0.299 | R136: 0.2145257966 | S136: 1.55705939 | T136: 0.3114118779
A137: Вавілова,22 | B137: 3 | C137: 22 | D137: 980.1 | E137: 1.866380049 | F137: 0.43 | G137: 0 | H137: 0.33 | I137: 0.1852268083 | J137: 0 | K137: 0.07 | L137: 0 | M137: 0.007 | N137: 0.009 | O137: 0 | P137: 0 | Q137: 0.299 | R137: 0.225089899 | S137: 1.555316707 | T137: 0.3110633415
A138: Вавілова,24 | B138: 3 | C138: 24 | D138: 1123.1 | E138: 1.602389459 | F138: 0.41 | G138: 0 | H138: 0.33 | I138: 0 | J138: 0 | K138: 0 | L138: 0 | M138: 0.007 | N138: 0 | O138: 0 | P138: 0 | Q138: 0.366 | R138: 0.2223245494 | S138: 1.335324549 | T138: 0.2670649099
A139: Вавілова,26 | B139: 3 | C139: 24 | D139: 1272.6 | E139: =S139+T139 -> 1.391138532 | F139: 0.36 | G139: 0 | H139: 0.33 | I139: 0 | J139: 0 | K139: 0 | L139: 0 | M139: 0.007 | N139: 0 | O139: 0 | P139: 0 | Q139: 0.265 | R139: 0.1972821101 | S139: 1.15928211 | T139: 0.231856422
A140: Земська,2 | B140: 3 | C140: 27 | D140: 1235.5 | E140: 1.896071869 | F140: 0.37 | G140: 0 | H140: 0.33 | I140: 0.2627971507 | J140: 0 | K140: 0.07 | L140: 0 | M140: 0.007 | N140: 0.029 | O140: 0 | P140: 0 | Q140: 0.28 | R140: 0.2312627402 | S140: 1.580059891 | T140: =S140*20% -> 0.3160119782
A141: Земська,2а | B141: 3 | C141: 26 | D141: 843.7 | E141: 1.9512 | F141: 0.41 | G141: 0 | H141: 0.33 | I141: 0.2 | J141: 0 | K141: 0.07 | L141: 0.029 | M141: 0.007 | N141: 0.02 | O141: 0 | P141: 0 | Q141: 0.36 | R141: 0.2 | S141: 1.626 | T141: 0.3252
A142: Земська,5 | B142: 3 | C142: 18 | D142: 995.85 | E142: 1.745765942 | F142: 0.35 | G142: 0 | H142: 0.33 | I142: 0.1893769259 | J142: 0 | K142: 0.07 | L142: 0.026 | M142: 0.007 | N142: 0.018 | O142: 0 | P142: 0 | Q142: 0.27 | R142: 0.1944280262 | S142: 1.454804952 | T142: 0.2909609904
A143: Київська,263 | B143: 3 | C143: 24 | D143: 1062 | E143: 1.584524612 | F143: 0.2 | G143: 0 | H143: 0.33 | I143: 0.1648181818 | J143: 0 | K143: 0.07 | L143: 0.023 | M143: 0.007 | N143: 0.032 | O143: 0 | P143: 0 | Q143: 0.27 | R143: 0.223618995 | S143: 1.320437177 | T143: 0.2640874354
A144: Київська,275 | B144: 3 | C144: 14 | D144: 755.73 | E144: 2.065221789 | F144: 0.42 | G144: 0 | H144: 0.33 | I144: 0.2267695656 | J144: 0 | K144: 0.07 | L144: 0.031 | M144: 0.007 | N144: 0.033 | O144: 0 | P144: 0 | Q144: 0.404 | R144: 0.1992485918 | S144: 1.721018157 | T144: 0.3442036315
A145: Колективна,32а | B145: 3 | C145: 12 | D145: 883.8 | E145: 1.710272866 | F145: 0.39 | G145: 0 | H145: 0.33 | I145: 0.2044659975 | J145: 0 | K145: 0.07 | L145: 0 | M145: 0.007 | N145: 0 | O145: 0 | P145: 0 | Q145: 0.381 | R145: 0.04276139116 | S145: 1.425227389 | T145: 0.2850454777
A146: Колективна,32б | B146: 3 | C146: 12 | D146: 882.55 | E146: 1.562025954 | F146: 0.42 | G146: 0 | H146: 0.33 | I146: 0.2048471838 | J146: 0 | K146: 0.07 | L146: 0 | M146: 0.007 | N146: 0 | O146: 0 | P146: 0 | Q146: 0.227 | R146: 0.04284111129 | S146: 1.301688295 | T146: 0.260337659
A147: Колективна,36 | B147: 3 | C147: 24 | D147: 1375.2 | E147: 1.803255095 | F147: 0.43 | G147: 0 | H147: 0.33 | I147: 0.1976093591 | J147: 0 | K147: 0.07 | L147: 0 | M147: 0.007 | N147: 0 | O147: 0 | P147: 0 | Q147: 0.413 | R147: 0.0551032198 | S147: 1.502712579 | T147: 0.3005425158
A148: Колективна,38 | B148: 3 | C148: 12 | D148: 869.5 | E148: 1.723550409 | F148: 0.44 | G148: 0 | H148: 0.33 | I148: 0.2086546208 | J148: 0 | K148: 0.07 | L148: 0 | M148: 0.007 | N148: 0 | O148: 0 | P148: 0 | Q148: 0.337 | R148: 0.04363738698 | S148: 1.436292008 | T148: 0.2872584016
A149: Пушкіна,58 | B149: 3 | C149: 18 | D149: 965.3 | E149: 2.088441827 | F149: 0.46 | G149: 0 | H149: 0.33 | I149: 0.1876811594 | J149: 0 | K149: 0.07 | L149: 0 | M149: 0.007 | N149: 0.055 | O149: 0 | P149: 0 | Q149: 0.438 | R149: 0.1926870299 | S149: 1.740368189 | T149: 0.3480736379
A150: пров.Фізкультурника,20 | B150: 3 | C150: 24 | D150: 1092.3 | E150: 1.266442211 | F150: 0 | G150: 0 | H150: 0.28 | I150: 0.1685884322 | J150: 0 | K150: 0.12 | L150: 0 | M150: 0.006 | N150: 0 | O150: 0 | P150: 0 | Q150: 0.25 | R150: 0.2307800767 | S150: 1.055368509 | T150: 0.2110737018
A151: Вокзальна,32 | B151: 3 | C151: 23 | D151: 1051.3 | E151: 1.938 | F151: 0.41 | G151: 0 | H151: 0.33 | I151: 0.172 | J151: 0 | K151: 0.07 | L151: 0.024 | M151: 0.007 | N151: 0.034 | O151: 0 | P151: 0 | Q151: 0.378 | R151: 0.19 | S151: 1.615 | T151: 0.323
A152: 1 пров.8 Березня,29 | B152: 4 | C152: 27 | D152: 1501.4 | E152: 1.6733365 | F152: 0.31 | G152: 0 | H152: 0.3 | I152: 0.2163756332 | J152: 0 | K152: 0.1 | L152: 0 | M152: 0.008 | N152: 0.023 | O152: 0 | P152: 0 | Q152: 0.376 | R152: 0.06107144988 | S152: 1.394447083 | T152: 0.2788894166
A153: в/м 12 буд.106 | B153: 4 | C153: 32 | D153: 1486.5 | E153: 1.802191124 | F153: 0.39 | G153: 0 | H153: 0.33 | I153: 0.1467742665 | J153: 0 | K153: 0.07 | L153: 0.017 | M153: 0.007 | N153: 0.012 | O153: 0 | P153: 0 | Q153: 0.301 | R153: 0.2280516703 | S153: 1.501825937 | T153: 0.3003651874
A154: в/м 12 буд.107 | B154: 4 | C154: 64 | D154: 2584.7 | E154: 1.793589617 | F154: 0.39 | G154: 0 | H154: 0.29 | I154: 0.1675829139 | J154: 0 | K154: 0.09 | L154: 0.019 | M154: 0.008 | N154: 0.007 | O154: 0 | P154: 0 | Q154: 0.306 | R154: 0.2170751002 | S154: 1.494658014 | T154: 0.2989316028
A155: 1 пров.8 Березня,31а | B155: 4 | C155: 20 | D155: 1029.4 | E155: 1.853569546 | F155: 0.41 | G155: 0 | H155: 0.33 | I155: 0.2102519267 | J155: 0 | K155: 0.07 | L155: 0.024 | M155: 0.007 | N155: 0 | O155: 0 | P155: 0 | Q155: 0.432 | R155: 0.061389362 | S155: 1.544641289 | T155: 0.3089282577
A156: І.Скоропатського,108 | B156: 4 | C156: 51 | D156: 1419.45 | E156: 1.3104 | F156: 0.25 | G156: 0 | H156: 0.15 | I156: 0.198 | J156: 0 | K156: 0.07 | L156: 0.018 | M156: 0.007 | N156: 0.018 | O156: 0 | P156: 0 | Q156: 0.315 | R156: 0.066 | S156: 1.092 | T156: 0.2184
A157: Вокзальна,14 | B157: 4 | C157: 29 | D157: 1341.1 | E157: 1.892071037 | F157: 0.32 | G157: 0 | H157: 0.32 | I157: 0.1562695548 | J157: 0 | K157: 0.08 | L157: 0.018 | M157: 0.008 | N157: 0.025 | O157: 0 | P157: 0 | Q157: 0.418 | R157: 0.2314563095 | S157: 1.576725864 | T157: 0.3153451729
A158: Київська,144 | B158: 4 | C158: 30 | D158: 1173.2 | E158: 1.64682835 | F158: 0.25 | G158: 0 | H158: 0.33 | I158: 0.1896707855 | J158: 0 | K158: 0.07 | L158: 0.022 | M158: 0.007 | N158: 0.031 | O158: 0 | P158: 0 | Q158: 0.227 | R158: 0.2456861729 | S158: 1.372356958 | T158: 0.2744713917
A159: Київська,170 | B159: 4 | C159: 36 | D159: 1493.04 | E159: 1.581136494 | F159: 0.12 | G159: 0 | H159: 0.36 | I159: 0.2168989431 | J159: 0 | K159: 0.04 | L159: 0.025 | M159: 0.01 | N159: 0.006 | O159: 0 | P159: 0 | Q159: 0.291 | R159: 0.2487148023 | S159: 1.317613745 | T159: 0.2635227491
A160: Київська,174 | B160: 4 | C160: 37 | D160: 1753.8 | E160: 1.676122904 | F160: 0.31 | G160: 0 | H160: 0.35 | I160: 0.1845336213 | J160: 0 | K160: 0.05 | L160: 0.021 | M160: 0.007 | N160: 0.015 | O160: 0 | P160: 0 | Q160: 0.23 | R160: 0.229235465 | S160: 1.396769086 | T160: 0.2793538173
A161: Київська,230 | B161: 4 | C161: 28 | D161: 1307.1 | E161: 1.724036498 | F161: 0.33 | G161: 0 | H161: 0.32 | I161: 0.1552829196 | J161: 0 | K161: 0.08 | L161: 0.018 | M161: 0.008 | N161: 0.025 | O161: 0 | P161: 0 | Q161: 0.263 | R161: 0.2374141622 | S161: 1.436697082 | T161: 0.2873394164
A162: Київська,230а | B162: 4 | C162: 32 | D162: 1449.7 | E162: 1.703968375 | F162: 0.35 | G162: 0 | H162: 0.3 | I162: 0.1451111856 | J162: 0 | K162: 0.1 | L162: 0.017 | M162: 0.008 | N162: 0.012 | O162: 0 | P162: 0 | Q162: 0.266 | R162: 0.2218624601 | S162: 1.419973646 | T162: 0.2839947291
A163: Костянтинівська,107 | B163: 4 | C163: 31 | D163: 1317.3 | E163: 1.688170759 | F163: 0.37 | G163: 0 | H163: 0.25 | I163: 0.1536186623 | J163: 0 | K163: 0.05 | L163: 0.018 | M163: 0.008 | N163: 0.037 | O163: 0 | P163: 0 | Q163: 0.3 | R163: 0.2201903031 | S163: 1.406808965 | T163: 0.2813617931
A164: Костянтинівська,109 | B164: 4 | C164: 45 | D164: 1864.3 | E164: 1.768100852 | F164: 0.39 | G164: 0 | H164: 0.25 | I164: 0.1692207454 | J164: 0 | K164: 0.05 | L164: 0.019 | M164: 0.008 | N164: 0.028 | O164: 0 | P164: 0 | Q164: 0.34 | R164: 0.2191966317 | S164: 1.473417377 | T164: 0.2946834754
A165: Костянтинівська,110 | B165: 4 | C165: 33 | D165: 1434.9 | E165: 1.525463825 | F165: 0.29 | G165: 0 | H165: 0.24 | I165: 0.145208543 | J165: 0 | K165: 0.04 | L165: 0.017 | M165: 0.007 | N165: 0.024 | O165: 0 | P165: 0 | Q165: 0.286 | R165: 0.2220113112 | S165: 1.271219854 | T165: 0.2542439708
A166: Костянтинівська,156б | B166: 4 | C166: 44 | D166: 2490.5 | E166: 1.887230584 | F166: 0.43 | G166: 0 | H166: 0.29 | I166: 0.2287786404 | J166: 0 | K166: 0.11 | L166: 0 | M166: 0.009 | N166: 0 | O166: 0 | P166: 0 | Q166: 0.448 | R166: 0.05691351299 | S166: 1.572692153 | T166: 0.3145384307
A167: Ю.Коптєва,3 | B167: 4 | C167: 50 | D167: 1939.8 | E167: 1.882555231 | F167: 0.34 | G167: 0 | H167: 0.33 | I167: 0.2035774193 | J167: 0 | K167: 0.07 | L167: 0.023 | M167: 0.007 | N167: 0.008 | O167: 0 | P167: 0 | Q167: 0.34 | R167: 0.2472186062 | S167: 1.568796025 | T167: 0.3137592051
A168: Ярмаркова,41 | B168: 4 | C168: 29 | D168: 1262.2 | E168: 1.603240801 | F168: 0.18 | G168: 0 | H168: 0.34 | I168: 0.1527944464 | J168: 0 | K168: 0.07 | L168: 0.018 | M168: 0.005 | N168: 0 | O168: 0 | P168: 0 | Q168: 0.349 | R168: 0.2212395542 | S168: 1.336034001 | T168: 0.2672068001
A169: Галаганівська,33 | B169: 5 | C169: 56 | D169: 2337.21 | E169: 1.784082744 | F169: 0.38 | G169: 0 | H169: 0.26 | I169: 0.1719788648 | J169: 0 | K169: 0.07 | L169: 0.016 | M169: 0.007 | N169: 0.011 | O169: 0 | P169: 0 | Q169: 0.324 | R169: 0.2467567555 | S169: 1.48673562 | T169: 0.2973471241
A170: 1 Травня,73 | B170: 5 | C170: 80 | D170: 4122.8 | E170: 1.382725443 | F170: 0.31 | G170: 0.17 | H170: 0 | I170: 0.1955615854 | J170: 0 | K170: 0.05 | L170: 0.013 | M170: 0.006 | N170: 0.023 | O170: 0 | P170: 0 | Q170: 0.325 | R170: 0.05970961722 | S170: 1.152271203 | T170: 0.2304542405
A171: 1 Травня,87 | B171: 5 | C171: 79 | D171: 3918.3 | E171: 1.349077425 | F171: 0.24 | G171: 0.17 | H171: 0 | I171: 0.2031918643 | J171: 0 | K171: 0.05 | L171: 0.013 | M171: 0.006 | N171: 0.02 | O171: 0 | P171: 0 | Q171: 0.36 | R171: 0.06203932338 | S171: 1.124231188 | T171: 0.2248462375
A172: 1 Травня,97 | B172: 5 | C172: 69 | D172: 3110.4 | E172: 1.587779977 | F172: 0.35 | G172: 0.15 | H172: 0 | I172: 0.1730393465 | J172: 0 | K172: 0.07 | L172: 0 | M172: 0.006 | N172: 0.011 | O172: 0 | P172: 0 | Q172: 0.337 | R172: 0.2261106345 | S172: 1.323149981 | T172: 0.2646299962
A173: 1 Травня,107 | B173: 5 | C173: 71 | D173: 3145.5 | E173: 1.441464286 | F173: 0.35 | G173: 0.15 | H173: 0 | I173: 0.1709553762 | J173: 0 | K173: 0.07 | L173: 0.016 | M173: 0.007 | N173: 0.022 | O173: 0 | P173: 0 | Q173: 0.345 | R173: 0.07026486192 | S173: 1.201220238 | T173: 0.2402440476
A174: 1 Травня,107а | B174: 5 | C174: 70 | D174: 3159.7 | E174: 1.522412856 | F174: 0.38 | G174: 0 | H174: 0.19 | I174: 0.1705706467 | J174: 0 | K174: 0.1 | L174: 0.016 | M174: 0.007 | N174: 0.022 | O174: 0 | P174: 0 | Q174: 0.313 | R174: 0.07010673313 | S174: 1.26867738 | T174: 0.253735476
A175: 1 Травня,107б | B175: 5 | C175: 70 | D175: 3181.1 | E175: 1.542645187 | F175: 0.35 | G175: 0 | H175: 0.26 | I175: 0.1690542012 | J175: 0 | K175: 0.1 | L175: 0.016 | M175: 0.006 | N175: 0.019 | O175: 0 | P175: 0 | Q175: 0.296 | R175: 0.06948345449 | S175: 1.285537656 | T175: 0.2571075311
A176: 1 Травня,111 | B176: 5 | C176: 71 | D176: 3210.9 | E176: 1.459444553 | F176: 0.34 | G176: 0.15 | H176: 0 | I176: 0.1681088792 | J176: 0 | K176: 0.07 | L176: 0 | M176: 0.007 | N176: 0.036 | O176: 0 | P176: 0 | Q176: 0.376 | R176: 0.06909491498 | S176: 1.216203794 | T176: 0.2432407588
A177: в/м 12 буд.146 | B177: 5 | C177: 41 | D177: 1808.3 | E177: 1.565199329 | F177: 0.38 | G177: 0.15 | H177: 0 | I177: 0.1491087097 | J177: 0 | K177: 0.07 | L177: 0.014 | M177: 0.007 | N177: 0.01 | O177: 0 | P177: 0 | Q177: 0.295 | R177: 0.2292240644 | S177: 1.304332774 | T177: 0.2608665548
A178: в/м 12 буд.147 | B178: 5 | C178: 70 | D178: 3220.5 | E178: 1.619923032 | F178: 0.39 | G178: 0.15 | H178: 0 | I178: 0.1671273435 | J178: 0 | K178: 0.07 | L178: 0.015 | M178: 0.006 | N178: 0.011 | O178: 0 | P178: 0 | Q178: 0.316 | R178: 0.2248085165 | S178: 1.34993586 | T178: 0.269987172
A179: в/м 12 буд.148 | B179: 5 | C179: 70 | D179: 3218.86 | E179: 1.62766996 | F179: 0.41 | G179: 0.15 | H179: 0 | I179: 0.1673216921 | J179: 0 | K179: 0.07 | L179: 0.015 | M179: 0.006 | N179: 0.005 | O179: 0 | P179: 0 | Q179: 0.308 | R179: 0.2250699412 | S179: 1.356391633 | T179: 0.2712783267
A180: в/м 12 буд.150 | B180: 5 | C180: 71 | D180: 3210.9 | E180: 1.653146275 | F180: 0.38 | G180: 0.16 | H180: 0 | I180: 0.1696218955 | J180: 0 | K180: 0.06 | L180: 0.015 | M180: 0.005 | N180: 0.022 | O180: 0 | P180: 0 | Q180: 0.336 | R180: 0.23 | S180: 1.377621896 | T180: 0.2755243791
A181: в/м 12 буд.151 | B181: 5 | C181: 40 | D181: 1774.8 | E181: 1.597913922 | F181: 0.39 | G181: 0.15 | H181: 0 | I181: 0.1496061533 | J181: 0 | K181: 0.07 | L181: 0.014 | M181: 0.007 | N181: 0.01 | O181: 0 | P181: 0 | Q181: 0.311 | R181: 0.2299887818 | S181: 1.331594935 | T181: 0.266318987
A182: в/м 12 буд.153 | B182: 5 | C182: 90 | D182: 4904 | E182: 1.581198811 | F182: 0.38 | G182: 0.15 | H182: 0 | I182: 0.1646574057 | J182: 0.17 | K182: 0.07 | L182: 0.011 | M182: 0.006 | N182: 0.011 | O182: 0 | P182: 0 | Q182: 0.297 | R182: 0.05800826991 | S182: 1.317665676 | T182: 0.2635331351
A183: в/м 12 буд.154 | B183: 5 | C183: 40 | D183: 2434.3 | E183: 1.571657124 | F183: 0.38 | G183: 0.15 | H183: 0 | I183: 0.1665566193 | J183: 0.17 | K183: 0.07 | L183: 0.011 | M183: 0.007 | N183: 0.011 | O183: 0 | P183: 0 | Q183: 0.292 | R183: 0.05215765041 | S183: 1.30971427 | T183: 0.261942854
A184: в/м 12 буд.155 | B184: 5 | C184: 70 | D184: 4106.87 | E184: 1.527220475 | F184: 0.39 | G184: 0.15 | H184: 0 | I184: 0.1638185138 | J184: 0.17 | K184: 0.07 | L184: 0.01 | M184: 0.006 | N184: 0.011 | O184: 0 | P184: 0 | Q184: 0.248 | R184: 0.0538652156 | S184: 1.272683729 | T184: 0.2545367459
A185: в/м 12 буд.156 | B185: 5 | C185: 40 | D185: 2451.4 | E185: 1.5492 | F185: 0.38 | G185: 0.15 | H185: 0 | I185: 0.164 | J185: 0.17 | K185: 0.07 | L185: 0.011 | M185: 0.007 | N185: 0.011 | O185: 0 | P185: 0 | Q185: 0.278 | R185: 0.05 | S185: 1.291 | T185: 0.2582
A186: 18 Вересня,28 | B186: 5 | C186: 60 | D186: 3287.4 | E186: 1.507613994 | F186: 0.38 | G186: 0.15 | H186: 0 | I186: 0.2046632387 | J186: 0 | K186: 0.07 | L186: 0.013 | M186: 0.007 | N186: 0.013 | O186: 0 | P186: 0 | Q186: 0.361 | R186: 0.05768175608 | S186: 1.256344995 | T186: 0.251268999
A187: 18 Вересня,30 | B187: 5 | C187: 90 | D187: 4690.1 | E187: 2.058399624 | F187: 0.38 | G187: 0.17 | H187: 0 | I187: 0.2288624075 | J187: 0 | K187: 0.05 | L187: 0.015 | M187: 0.007 | N187: 0.013 | O187: 0 | P187: 0 | Q187: 0.791 | R187: 0.06047061284 | S187: =F187+G187+H187+I187+J187+K187+L187+M187+N187+O187+P187+Q187+R187 -> 1.71533302 | T187: 0.3430666041
A188: І. Скоропатського,102 | B188: 5 | C188: 90 | D188: 4888.05 | E188: 1.456938576 | F188: 0.29 | G188: 0.15 | H188: 0 | I188: 0.1926307751 | J188: 0 | K188: 0.07 | L188: 0.018 | M188: 0.006 | N188: 0.014 | O188: 0 | P188: 0 | Q188: 0.281 | R188: 0.1924847048 | S188: 1.21411548 | T188: 0.242823096
A189: Вавілова,25а | B189: 5 | C189: 61 | D189: 2007 | E189: 1.570946505 | F189: 0.4 | G189: 0.15 | H189: 0 | I189: 0.1340774699 | J189: 0 | K189: 0.07 | L189: 0.01 | M189: 0.007 | N189: 0.009 | O189: 0 | P189: 0 | Q189: 0.433 | R189: 0.09604461739 | S189: 1.309122087 | T189: 0.2618244175
A190: Вавілова,28 | B190: 5 | C190: 60 | D190: 2064.1 | E190: 1.69132815 | F190: 0.41 | G190: 0 | H190: 0.2 | I190: 0.1304945277 | J190: 0 | K190: 0.08 | L190: 0 | M190: 0.006 | N190: 0.009 | O190: 0 | P190: 0 | Q190: 0.482 | R190: 0.09194559762 | S190: 1.409440125 | T190: 0.2818880251
A191: Вавілова,30 | B191: 5 | C191: 94 | D191: 5082.3 | E191: 1.474161881 | F191: 0.39 | G191: 0.15 | H191: 0 | I191: 0.21 | J191: 0 | K191: 0.07 | L191: 0.014 | M191: 0.007 | N191: 0.014 | O191: 0 | P191: 0 | Q191: 0.315 | R191: 0.0584682343 | S191: 1.228468234 | T191: 0.2456936469
A192: Вокзальна,3 | B192: 5 | C192: 54 | D192: 2638.68 | E192: 1.562464378 | F192: 0.36 | G192: 0.15 | H192: 0 | I192: 0.2076259851 | J192: 0 | K192: 0.07 | L192: 0 | M192: 0.007 | N192: 0.02 | O192: 0 | P192: 0 | Q192: 0.264 | R192: 0.2234276629 | S192: 1.302053648 | T192: 0.2604107296
A193: Вокзальна,5 | B193: 5 | C193: 59 | D193: 2668.77 | E193: 1.835756506 | F193: 0.4 | G193: 0 | H193: 0.27 | I193: 0.1936100528 | J193: 0 | K193: 0.11 | L193: 0.018 | M193: 0.007 | N193: 0.025 | O193: 0 | P193: 0 | Q193: 0.295 | R193: 0.2111870356 | S193: 1.529797088 | T193: 0.3059594177
A194: Вокзальна,29 | B194: 5 | C194: 64 | D194: 2856.9 | E194: 1.664875254 | F194: 0.31 | G194: 0 | H194: 0.26 | I194: 0.1861988628 | J194: 0 | K194: 0.09 | L194: 0.017 | M194: 0.007 | N194: 0.015 | O194: 0 | P194: 0 | Q194: 0.29 | R194: 0.2121971821 | S194: 1.387396045 | T194: 0.277479209
A195: Вокзальна,31 | B195: 5 | C195: 58 | D195: 2346.79 | E195: 1.641607198 | F195: 0.38 | G195: 0.15 | H195: 0 | I195: 0.1729783477 | J195: 0 | K195: 0.07 | L195: 0.016 | M195: 0.007 | N195: 0.011 | O195: 0 | P195: 0 | Q195: 0.347 | R195: 0.2140276509 | S195: 1.368005999 | T195: 0.2736011997
A196: Вокзальна,36 | B196: 5 | C196: 40 | D196: 1786.53 | E196: 1.643619852 | F196: 0.32 | G196: 0 | H196: 0.25 | I196: 0.1504291853 | J196: 0 | K196: 0.08 | L196: 0.014 | M196: 0.008 | N196: 0.015 | O196: 0 | P196: 0 | Q196: 0.301 | R196: 0.2312540249 | S196: 1.36968321 | T196: 0.273936642
A197: Вокзальна,37 | B197: 5 | C197: 71 | D197: 3099.6 | E197: 1.386160421 | F197: 0.34 | G197: 0 | H197: 0.21 | I197: 0.1687679023 | J197: 0 | K197: 0.1 | L197: 0.016 | M197: 0.007 | N197: 0.019 | O197: 0 | P197: 0 | Q197: 0.225 | R197: 0.06936578196 | S197: 1.155133684 | T197: 0.2310267369
A198: Вокзальна,39 | B198: 5 | C198: 64 | D198: 2572 | E198: 1.623113531 | F198: 0.35 | G198: 0 | H198: 0.26 | I198: 0.2090406454 | J198: 0 | K198: 0.12 | L198: 0.019 | M198: 0.008 | N198: 0.021 | O198: 0 | P198: 0 | Q198: 0.287 | R198: 0.07855396402 | S198: 1.352594609 | T198: 0.2705189219
A199: Вокзальна,44 | B199: 5 | C199: 129 | D199: 5891.1 | E199: 1.524256769 | F199: 0.31 | G199: 0.16 | H199: 0 | I199: 0.1982139738 | J199: 0 | K199: 0.06 | L199: 0 | M199: 0.007 | N199: 0.022 | O199: 0 | P199: 0 | Q199: 0.293 | R199: 0.22 | S199: 1.270213974 | T199: 0.2540427948
A200: Гвардійська,88/2 | B200: 5 | C200: 92 | D200: 4836.22 | E200: 1.683181921 | F200: 0.48 | G200: 0.15 | H200: 0 | I200: 0.2226516007 | J200: 0 | K200: 0.07 | L200: 0.014 | M200: 0.007 | N200: 0.018 | O200: 0 | P200: 0 | Q200: 0.383 | R200: 0.058 | S200: 1.402651601 | T200: 0.2805303201
A201: Гвардійська,92 | B201: 5 | C201: 151 | D201: 8612.8 | E201: 1.349452704 | F201: 0.34 | G201: 0.15 | H201: 0 | I201: 0.202631334 | J201: 0 | K201: 0.07 | L201: 0.015 | M201: 0.007 | N201: 0.005 | O201: 0 | P201: 0 | Q201: 0.28 | R201: 0.0549125859 | S201: 1.12454392 | T201: 0.224908784
A202: Гвардійська,94 | B202: 5 | C202: 100 | D202: 4428.62 | E202: 1.620274787 | F202: 0.35 | G202: 0.15 | H202: 0 | I202: 0.1823261949 | J202: 0 | K202: 0.07 | L202: 0.017 | M202: 0.007 | N202: 0.024 | O202: 0 | P202: 0 | Q202: 0.321 | R202: 0.2289027945 | S202: 1.350228989 | T202: 0.2700457979
A203: Гвардійська,96 | B203: 5 | C203: 68 | D203: 3581.24 | E203: =S203+T203 -> 1.535099387 | F203: 0.41 | G203: 0.15 | H203: 0 | I203: 0.2212494895 | J203: 0 | K203: 0.07 | L203: 0.014 | M203: 0.007 | N203: 0.029 | O203: 0 | P203: 0 | Q203: 0.318 | R203: 0.06 | S203: 1.279249489 | T203: 0.2558498979
... 385 more rows
